Cogmind - Beta 15 @@@ ROGUE MODE // 2025.08.09 @ 17:19:38 Player: ilja Result: Destroyed by G-47 Trooper with Particle Gun Performance ------------- Evolutions (2) 1000 Regions Visited (6) 1200 Robots Destroyed (4) 20 Value Destroyed (27) 27 Prototype IDs (3) 60 Alien Tech Used (0) 0 Bonus (300) 300 TOTAL SCORE: 2607 Bonus ------- Aligned with FarCom 300 Cogmind --------- Core Integrity 0/550 Matter 300/300 Energy 100/100 System Corruption 2% Temperature Cool (9) Movement Core (50) Location -8/Materials Parts ------- > --- POWER (1) -------- (None) > --- PROPULSION (2) --- (None) > --- UTILITY (6) ------ (None) > --- WEAPON (2) ------- (None) > --- INVENTORY (5) ---- Fission Core Cloak of Protection Datajack Mining Laser Peak State ------------ > --- POWER ------------ (None) > --- PROPULSION ------- (None) > --- UTILITY ---------- Cloak of Protection Core Shielding PSU Rigger Chronowheel > --- WEAPON ----------- (None) > --- INVENTORY -------- Fission Core Datajack Mining Laser [Rating: 30] Favorites ----------- Power Light Ion Engine Engine Light Ion Engine Propulsion Light Treads Treads Light Treads Utility Core Shielding Device Seismic Detector Processor Signal Interpreter Protection Core Shielding Weapon Light Assault Rifle Ballistic Gun Light Assault Rifle Build | -11 -10 -9 -9 -9 -8 -8 ------- Run | Yrd Mat Mat Min Exi Min Mat Slots Evolved 4 | . . 2 . . . 2 Power . | . . . . . . . Propulsion . | . . . . . . . Utility 4 | . . 2 . . . 2 Weapon . | . . . . . . . Parts Attached 12 | 7 2 . . 3 . . Power 2 | 2 . . . . . . Engine 2 | 2 . . . . . . Core . | . . . . . . . Reactor . | . . . . . . . Propulsion 2 | 2 . . . . . . Treads 2 | 2 . . . . . . Leg . | . . . . . . . Wheel . | . . . . . . . Hover . | . . . . . . . Flight . | . . . . . . . Utility 6 | 1 2 . . 3 . . Device 4 | 1 . . . 3 . . Storage . | . . . . . . . Processor 1 | . 1 . . . . . Hackware . | . . . . . . . Protection 1 | . 1 . . . . . Artifact . | . . . . . . . Weapon 2 | 2 . . . . . . Energy Gun . | . . . . . . . Energy Cannon . | . . . . . . . Ballistic Gun 2 | 2 . . . . . . Ballistic Cannon . | . . . . . . . Launcher . | . . . . . . . Special Weapon . | . . . . . . . Impact Weapon . | . . . . . . . Slashing Weapon . | . . . . . . . Piercing Weapon . | . . . . . . . Special Melee Weapon . | . . . . . . . Unidentified Prototypes 3 | . . . . 3 . . Parts Lost 1 | . . . . . . 1 Power . | . . . . . . . Propulsion . | . . . . . . . Utility 1 | . . . . . . 1 Weapon . | . . . . . . . Highest Loss Streak 1 | . . . . . . 1 To Critical Strikes . | . . . . . . . Average Backups 4 | 4 4 5 5 4 4 4 Power 1 | 1 1 1 1 1 1 1 Propulsion . | 1 1 1 1 . . . Utility . | . 1 1 1 . 1 1 Weapon . | . 1 1 1 1 1 1 Tool/Special . | . . . . . . . Unused Backups 7 | 1 . . . 3 . 3 Power 2 | . . . . 1 . 1 Propulsion 2 | 1 . . . 1 . . Utility 1 | . . . . 1 . . Weapon 1 | . . . . . . 1 Tool/Special 1 | . . . . . . 1 Average Slot Usage (%) 18 | . 15 22 22 21 11 7 Device 1 | . 3 . . . . . Processor 6 | . . 11 11 9 . . Protection 10 | . 11 11 11 10 11 7 Peak Build Rating 30 | 6 2 2 2 30 2 2 Average Rating 2 | 4 1 2 2 2 2 1 On Entrance 1 | . 1 2 2 2 2 2 Naked Turns 34 | . . . . 1 . 33 Heaviest Build 9 | 5 2 1 1 9 1 1 Greatest Support 40 | 40 3 3 3 3 3 3 Greatest Overweight (x) 2 | . . . . 2 . . Average Overweight (x) . | . . . . . . . Largest Inventory Capacity 5 | 5 5 5 5 5 5 5 Average Capacity 5 | 5 5 5 5 5 5 5 Most Carried 5 | 5 5 5 5 5 4 4 Average Carried 4 | 4 4 5 5 4 4 4 Final Capacity 5 | 5 5 5 5 5 5 5 Final Carried 5 | 4 5 5 5 4 4 4 Class Distribution -------------------- 100% | Mutant Dominant Class ---------------- Mutant | -10/Materials Mutant | -9/Materials Mutant | -9/Mines Mutant | -9/Exiles Mutant | -8/Mines Mutant | -8/Materials Resources | -11 -10 -9 -9 -9 -8 -8 ----------- Run | Yrd Mat Mat Min Exi Min Mat Matter Collected 302 | 292 10 . . . . . Remotely . | . . . . . . . Salvage Created 113 | 113 . . . . . . Parts 12 | 12 . . . . . . Haulers Intercepted . | . . . . . . . Recyclers Shooed 1 | 1 . . . . . . Parts Field Recycled . | . . . . . . . Retrieved Matter . | . . . . . . . Parts Self-Destructed . | . . . . . . . Prevented . | . . . . . . . Kills | -11 -10 -9 -9 -9 -8 -8 ------- Run | Yrd Mat Mat Min Exi Min Mat Combat Hostiles Destroyed . | . . . . . . . Classes Destroyed 2 | 2 . . . . . . Tunneler 3 | 3 . . . . . . Recycler 1 | 1 . . . . . . Best Kill Streak 2 | 2 . . . . . . Combat Bots Only . | . . . . . . . Max Kills in Single Turn 1 | 1 . . . . . . Gunslinging . | . . . . . . . Exploded . | . . . . . . . Melee . | . . . . . . . Uniques/NPCs Destroyed . | . . . . . . . Combat | -11 -10 -9 -9 -9 -8 -8 -------- Run | Yrd Mat Mat Min Exi Min Mat Hostile Shots Fired 74 | . 18 4 . . . 52 Missed 27 | . 10 1 . . . 16 Hits 47 | . 8 3 . . . 36 Projectile 47 | . 8 3 . . . 36 Damage Taken 720 | . 107 34 . . . 579 Core 668 | . 88 28 . . . 552 Absorbed by Shields . | . . . . . . . Redirected to Shielding 52 | . 19 6 . . . 27 Core Remaining (%) 85 | 100 64 . . . 93 . Volleys Fired 11 | 11 . . . . . . Largest 2 | 2 . . . . . . Hottest 40 | 40 . . . . . . Shots Fired 22 | 22 . . . . . . Gun 22 | 22 . . . . . . Cannon . | . . . . . . . Launcher . | . . . . . . . Special . | . . . . . . . Kinetic 22 | 22 . . . . . . Thermal . | . . . . . . . Explosive . | . . . . . . . Electromagnetic . | . . . . . . . Robot Hit Streak 4 | 4 . . . . . . Robot Miss Streak 2 | 2 . . . . . . Penetration Max . | . . . . . . . Secondary Targets . | . . . . . . . Shots Hit Robots 14 | 14 . . . . . . Core Hits 9 | 7 . . . . . 2 Critical Kills . | . . . . . . . Critical Parts Destroyed . | . . . . . . . Critical Strikes . | . . . . . . . Melee Attacks . | . . . . . . . Impact . | . . . . . . . Slashing . | . . . . . . . Piercing . | . . . . . . . Sneak Attacks . | . . . . . . . Combat Hostiles . | . . . . . . . Follow-up Attacks . | . . . . . . . Damage Inflicted 208 | 117 . . . . . 91 Guns 117 | 117 . . . . . . Cannons . | . . . . . . . Explosions . | . . . . . . . Melee . | . . . . . . . Ramming 91 | . . . . . . 91 Kinetic 117 | 117 . . . . . . Thermal . | . . . . . . . Explosive . | . . . . . . . Electromagnetic . | . . . . . . . Impact . | . . . . . . . Slashing . | . . . . . . . Piercing . | . . . . . . . Highest Corruption 2 | . . . . . . 2 Average Corruption 2 | . . . . . . 2 Corruption Purged . | . . . . . . . Corruption Blocked . | . . . . . . . Overload Shots . | . . . . . . . Overflow Damage . | . . . . . . . Projectiles . | . . . . . . . Explosions . | . . . . . . . Melee . | . . . . . . . Knockbacks . | . . . . . . . Impact . | . . . . . . . Kinetic . | . . . . . . . Secondary . | . . . . . . . Self-Inflicted Damage 42 | . . . . . . 42 Shots . | . . . . . . . Rammed 24 | . . . . . . 24 Targets Rammed 24 | . . . . . . 24 Kicked . | . . . . . . . Crushed . | . . . . . . . Highest Temperature . | . . . . . . . Average Temperature . | . . . . . . . Received Heat Transfer 255 | . 48 18 . . . 189 Siege Activations . | . . . . . . . Martial Activations . | . . . . . . . Shielding Activations . | . . . . . . . Robots Disrupted . | . . . . . . . Combat Hostiles . | . . . . . . . Robots Corrupted . | . . . . . . . Combat Hostiles . | . . . . . . . Parts Fried . | . . . . . . . Impact Corruptions . | . . . . . . . Robots Melted . | . . . . . . . Combat Hostiles . | . . . . . . . Parts Melted . | . . . . . . . Heat Transferred . | . . . . . . . Parts Sabotaged . | . . . . . . . Parts Stolen . | . . . . . . . Parts Stripped . | . . . . . . . Power Chain Reactions . | . . . . . . . Alert | -11 -10 -9 -9 -9 -8 -8 ------- Run | Yrd Mat Mat Min Exi Min Mat Maximum Alert Level . | . . . . . . . Low Security (%) 100 | 100 100 100 100 . 100 100 Level 1 . | . . . . . . . Level 2 . | . . . . . . . Level 3 . | . . . . . . . Level 4 . | . . . . . . . Level 5 . | . . . . . . . High Security . | . . . . . . . Max Security . | . . . . . . . Peak Influence 25 | 5 25 10 3 . . . Initial 10 | . . 10 3 . . . Average 1 | 1 2 10 1 . . . Influence Increases 65 | 20 45 . . . . . Destroy 0b10 Robot/NC 20 | 20 . . . . . . Lose Combat Pursuer 45 | . 45 . . . . . Influence Decreases 65 | 20 20 15 10 . . . Entered New Map 22 | . . 15 7 . . . Time Decay 43 | 20 20 . 3 . . . Squads Dispatched 5 | . 2 1 . . . 2 Investigation 1 | . 1 . . . . . Extermination . | . . . . . . . Reinforcement 4 | . 1 1 . . . 2 Assault . | . . . . . . . Garrison . | . . . . . . . Intercept . | . . . . . . . Searches Triggered . | . . . . . . . Construction Impeded . | . . . . . . . Haulers Reinforced . | . . . . . . . Active Scanning Responses . | . . . . . . . Cargo Convoy Interrupts . | . . . . . . . Stealth | -11 -10 -9 -9 -9 -8 -8 --------- Run | Yrd Mat Mat Min Exi Min Mat Distress Signals 2 | . 1 . . . . 1 Communications Jammed . | . . . . . . . Distress Signals . | . . . . . . . Times Spotted 29 | . 10 3 . . . 16 Peak Tracking Total 9 | . 3 2 . . . 9 Tactical Retreats 2 | . 2 . . . . . Traps | -11 -10 -9 -9 -9 -8 -8 ------- Run | Yrd Mat Mat Min Exi Min Mat Traps Triggered 4 | . 2 . . . . 2 Indirectly . | . . . . . . . Trap Hack Attempts . | . . . . . . . Triggered . | . . . . . . . Disarmed . | . . . . . . . Reprogrammed . | . . . . . . . Reused . | . . . . . . . Traps Extracted . | . . . . . . . Installed . | . . . . . . . Triggered . | . . . . . . . Machines | -11 -10 -9 -9 -9 -8 -8 ---------- Run | Yrd Mat Mat Min Exi Min Mat Machines Disabled . | . . . . . . . Max in Single Turn . | . . . . . . . Machines Repaired . | . . . . . . . Machines Dismantled . | . . . . . . . Machines Sabotaged . | . . . . . . . Overloaded Fab Kills . | . . . . . . . Hacking | -11 -10 -9 -9 -9 -8 -8 --------- Run | Yrd Mat Mat Min Exi Min Mat Machines Accessed 5 | . 2 . . 3 . . Terminals 2 | . 2 . . . . . Fabricators . | . . . . . . . Repair Stations . | . . . . . . . Recycling Units . | . . . . . . . Scanalyzers . | . . . . . . . Garrison Access . | . . . . . . . Total Hacks 45 | . 3 . . 42 . . Successful 43 | . 1 . . 42 . . Failed 2 | . 2 . . . . . Catastrophic 2 | . 2 . . . . . Database Lockouts . | . . . . . . . Manual 7 | . 5 . . 2 . . Terminals 3 | . 3 . . . . . Fabricators . | . . . . . . . Repair Stations . | . . . . . . . Recycling Units . | . . . . . . . Scanalyzers . | . . . . . . . Garrison Access . | . . . . . . . Terminal Hacks 42 | . . . . 42 . . Record 42 | . . . . 42 . . Fabricator Hacks . | . . . . . . . Repair Station Hacks . | . . . . . . . Recycling Unit Hacks . | . . . . . . . Scanalyzer . | . . . . . . . Garrison Access Hacks . | . . . . . . . Unauthorized Hacks 1 | . 1 . . . . . Terminals 1 | . 1 . . . . . Assimilate 1 | . 1 . . . . . Fabricators . | . . . . . . . Repair Stations . | . . . . . . . Recycling Units . | . . . . . . . Scanalyzers . | . . . . . . . Garrison Access . | . . . . . . . Data Cores Recovered . | . . . . . . . Used . | . . . . . . . Hacking Detections 1 | . 1 . . . . . Full Trace Events 1 | . 1 . . . . . Feedback Events . | . . . . . . . Feedback Blocked . | . . . . . . . Robot Schematics Acquired . | . . . . . . . Robots Built . | . . . . . . . Authchips . | . . . . . . . Time . | . . . . . . . Total Robot Build Rating . | . . . . . . . Part Schematics Acquired . | . . . . . . . Parts Built . | . . . . . . . Authchips . | . . . . . . . Time . | . . . . . . . Total Part Build Rating . | . . . . . . . Parts Repaired . | . . . . . . . Time . | . . . . . . . Parts Recycled . | . . . . . . . Recycled Matter . | . . . . . . . Retrieved Matter . | . . . . . . . Retrieved Components . | . . . . . . . Parts Scanalyzed . | . . . . . . . Part Schematics Acquired . | . . . . . . . Parts Damaged . | . . . . . . . Bothacking | -11 -10 -9 -9 -9 -8 -8 ------------ Run | Yrd Mat Mat Min Exi Min Mat Used RIF Installer . | . . . . . . . Robots Hacked . | . . . . . . . Non-combat . | . . . . . . . Combat . | . . . . . . . Robot Hacks Applied . | . . . . . . . Relay Couplers Released . | . . . . . . . Fabnet Peak Effective % . | . . . . . . . Robots Rewired . | . . . . . . . Allies Hacked . | . . . . . . . Hacks Repelled . | . . . . . . . Allies | -11 -10 -9 -9 -9 -8 -8 -------- Run | Yrd Mat Mat Min Exi Min Mat Total Allies . | . . . . . . . Largest Group . | . . . . . . . Highest-Rated Group . | . . . . . . . Highest-Rated Ally . | . . . . . . . Total Orders . | . . . . . . . Ally Attacks . | . . . . . . . Total Damage . | . . . . . . . Kills . | . . . . . . . Allies Corrupted . | . . . . . . . Allies Melted . | . . . . . . . Intel | -11 -10 -9 -9 -9 -8 -8 ------- Run | Yrd Mat Mat Min Exi Min Mat Active Infowar (turns) 76 | 12 55 . . 9 . . Seismic 67 | 12 55 . . . . . Cloaking 9 | . . . . 9 . . Robot Analysis Total . | . . . . . . . Derelict Logs Recovered . | . . . . . . . Drone Launches . | . . . . . . . Drone Recoveries . | . . . . . . . Exploration | -11 -10 -9 -9 -9 -8 -8 ------------- Run | Yrd Mat Mat Min Exi Min Mat Turns Passed 1562 | 137 276 19 48 904 35 143 Spaces Moved 2589 | 69 541 38 96 1658 70 117 Core 2540 | 20 541 38 96 1658 70 117 Treads 49 | 49 . . . . . . Legs . | . . . . . . . Wheels . | . . . . . . . Hover . | . . . . . . . Flight . | . . . . . . . Fastest Speed 50 | 50 50 50 50 50 50 50 Average Speed 52 | 128 50 50 50 51 50 50 Slowest Speed 160 | 160 50 50 50 150 50 50 Overloaded Moves . | . . . . . . . Propulsion Burnouts . | . . . . . . . Robots Hopped . | . . . . . . . Potential Cave-ins . | . . . . . . . Cave-ins Triggered . | . . . . . . . Exploration Rate (%) 31 | 5 71 5 19 95 18 8 Regions Visited 6 Branch Regions 3 Pre-discovered Areas 1 | . . . . 1 . . Known Exits Taken 4 | . 1 1 1 1 . . Unknown Exits Taken 2 | 1 . . . . 1 . Scrap Searched . | . . . . . . . Spaces Dug . | . . . . . . . Terrain Destroyed . | . . . . . . . Melee . | . . . . . . . Projectile . | . . . . . . . AOE . | . . . . . . . Terrain Rammed . | . . . . . . . Walls Destroyed . | . . . . . . . Machines Disabled . | . . . . . . . Actions | -11 -10 -9 -9 -9 -8 -8 --------- Run | Yrd Mat Mat Min Exi Min Mat Total 2766 | 100 544 37 95 1720 69 201 Wait 88 | . 1 . . 27 . 60 Move 2583 | 68 540 37 95 1657 69 117 Hop . | . . . . . . . Pick Up 11 | 7 1 . . 3 . . Fast Attach 8 | 5 2 . . 1 . . Attach 6 | 2 . . . 4 . . Detach 3 | . . . . 3 . . Swap . | . . . . . . . Drop 13 | 7 . . . 6 . . Fire 11 | 11 . . . . . . Melee . | . . . . . . . Ram 24 | . . . . . . 24 Kick . | . . . . . . . Crush . | . . . . . . . Escape Stasis . | . . . . . . . Rewire 19 | . . . . 19 . . Trap . | . . . . . . . Miscellaneous . | . . . . . . . Route ------- -11/Scrapyard -10/Materials (discovered 3 exits: *Mat x2 / [*Min]) -9/Materials -9/Mines -9/Exiles (discovered 2 exits: *Min x2) -8/Mines -8/Materials History --------- Turn | Location | Event 53 | -11/Scrapyard | Discovered new exit (range 15) 138 | -11/Scrapyard | Entered Materials 139 | -10/Materials | Met a group of wandering Federalists 274 | -10/Materials | Discovered new exit (range 15) 279 | -10/Materials | Discovered new exit (range 12) 305 | -10/Materials | Build established: Mutant 376 | -10/Materials | Discovered new exit (range 7) 413 | -10/Materials | Identified exit to Materials 414 | -10/Materials | Entered another Materials area 414 | -9/Materials | Evolved 2 slots: Utility x2 414 | -9/Materials | Discovered new exit (range 7) 418 | -9/Materials | Identified exit to Mines 433 | -9/Materials | Entered Mines 434 | -9/Mines | Met a Derelict bent on vengeance 478 | -9/Mines | Deemed a non-threat by the Exiles lab entrance 478 | -9/Mines | Discovered new exit (range 5) 480 | -9/Mines | Identified exit to Exiles 481 | -9/Mines | Entered Exiles 500 | -9/Exiles | Met 8R-AWN 518 | -9/Exiles | Met EX-HEX 573 | -9/Exiles | Discovered new exit (range 15) 643 | -9/Exiles | Met EX-DEC 671 | -9/Exiles | Visited The Gauntlet 757 | -9/Exiles | Learned location of Zion (-7) 790 | -9/Exiles | Discovered new exit (range 14) 1066 | -9/Exiles | Identified exit to Mines 1194 | -9/Exiles | Met EX-BIN 1210 | -9/Exiles | Aligned with FarCom system 1211 | -9/Exiles | Given EX-Vault access code 1248 | -9/Exiles | Opened EX-Vault 1249 | -9/Exiles | Found Prototype Device 1249 | -9/Exiles | Identified Cloak of Protection 1256 | -9/Exiles | Found Prototype Device 1287 | -9/Exiles | Found Prototype Device 1288 | -9/Exiles | Identified Chronowheel 1288 | -9/Exiles | Activated Chronowheel 1290 | -9/Exiles | Identified PSU Rigger 1334 | -9/Exiles | Warned to stay clear of 0b10 Research branches 1385 | -9/Exiles | Left Exiles lab with Cloak of Protection 1385 | -9/Exiles | Entered Mines 1415 | -8/Mines | Discovered new exit (range 11) 1420 | -8/Mines | Entered Materials 1420 | -8/Materials | Evolved 2 slots: Utility x2 1540 | -8/Materials | Core integrity fell below 50% 1555 | -8/Materials | Core integrity fell below 20% 1563 | -8/Materials | Destroyed by G-47 Trooper with Particle Gun Last Messages --------------- 01520_ Proton Bomb Trap short circuited. 01520_ A bubble of electromagnetic force engulfs the area. 01520_ Proton Bomb Trap short circuited. 01520_ A bubble of electromagnetic force engulfs the area. 01520_ O-16 Technician: "IFF HANDSHAKE FAILED. SECURING TERMINAL." 01520_ Slammed into O-16 Technician. 01528_ Slammed into O-24 Administrator. 01530_ Slammed into G-47 Trooper. 01530_ Core Shielding destroyed. 01531_ Slammed into Y-45 Defender. 01541_ Connecting with Garrison Access... 01541_ Current location identified: Materials 01543_ Slammed into S-10 Pest. 01548_ Slammed into G-47 Trooper. 01549_ Destabilizing: System corrupted (+2). 01550_ Slammed into G-47 Trooper. 01560_ ALERT: Hostiles spotted, dispatching reinforcements to Terminal M007. 01560_ Slammed into G-47 Trooper. Map ----- +----------------------------------------------------+ | | | | | | | | | | | | | ######??????????????#####????????????????????????? | | #! #?????????????? ##########???????????????? | | # #?????????????# # #???????????????? | | #]] ############### #! """ #???????????????? | | #]] / ^ = + # """ #???????????????? | | #] # ##### # # """ #???????????????? | | # # #???# # # #???????????????? | | # # [ #???# # # """ #???????????????? | | #= # ##??# # # """ #???????????????? | | ###### "#??# # # """ #???????????????? | | ## ###" T#??# ###### #???????????????? | | # #" ]] "#??# #????#####+####???????????????? | | #! #" ]] ##??# ######## #????????????????? | | # # ##### #????????????????? | | # # """#### " #????????????????? | | # # !!! R"#??# #????????????????? | | # + !! """#??######## #????????????????? | | #[[ # !! ####?????????#######????????????????? | | #[[ !# #####################???????????????? | | #[ # gg Yg g gssss@g o +??????????????? | | ########"g"###################### #??????????????? | | ???????#"G"#?????????????????????????????????????? | | ???????#"""#?????????????????????????????????????? | | ???????#####?????????????????????????????????????? | | ?????????????????????????????????????????????????? | | ?????????????????????????????????????????????????? | | ?????????????????????????????????????????????????? | | ?????????????????????????????????????????????????? | | ?????????????????Y??????????Y????????????????????? | | ?????????????????????????????????????????????????? | | ?????????????????????????????????????????????????? | | ?????????????????????????????????????????????????? | | ?????????????????????????????????????????????????? | | ?????????????????????????????????????????????????? | | ?????????????????????????????????????????????????? | | ?????????????????????????????????????????????????? | | ?????????????????????????????????????????????????? | | ?????????????????????????????????????????????????? | | ?????????????????????????????????????????????????? | | ?????????????????????????????????????????????????? | | ?????????????????????????????????????????????????? | | ?????????????????????????????????????????????????? | | ?????????????????????????????????????????????????? | | ?????????????????????????????????????????????????? | +----------------------------------------------------+ Best States ------------- Heat Dissipation 31 Energy Generation 10 Energy Capacity 125 Matter Stores 300 Matter Capacity 300 Sight Range 16 Terrain Scan Density 10 Cloak Strength 5 Core Shielding 20 Evasion (%) 50 Recoil Reduction 2 Item Schematics ----------------- None Robot Schematics ------------------ None Fabricated ------------ Nothing Repaired ---------- Nothing Alien Tech Used ----------------- None Achievements -------------- None Challenges ------------ None Game ------ Seed ResetArmorJets Manual? 0 Play Time 00:25:22 Cumulative 10.2 hours Start 2025.08.09 @ 16:55:51 End 2025.08.09 @ 17:19:38 Sessions 1 Manual Loads 0 Difficulty Rogue Special Mode None Game No. 23 Rogue 23 Adventurer 0 Explorer 0 Win Type - Total 0 Types 0/0/0/0/0/0/0/0/0/0 Lore% 12 Gallery% 12 Achievement% 11 Wizard Run 0 Options --------- Layout 0 ASCII 0 Keyboard 0 Movement Arrows Keybinds 0 Fullscreen 1 Font 20/SmallcapsGlow Map View 66x50 Zoom Use 0% Tactical HUD 1 Map Filters NONE Filters NONE Steam 1 RUN: 1d661a69-100c-4ef7-a329-81366679d576